Cogmind - Beta 14 @@@ ROGUE MODE // 2024.10.04 @ 23:53:15 Player: Minty Result: Destroyed by Y-64 Sentinel with Wave Gun Performance ------------- Evolutions (5) 2500 Regions Visited (13) 2600 Robots Destroyed (61) 305 Value Destroyed (2514) 2514 Prototype IDs (26) 520 Alien Tech Used (0) 0 Bonus (3433) 3433 TOTAL SCORE: 11872 Bonus ------- High Alert Combat Kills 206 Follower Combat Kills 981 Entered DSFs 500 Registered with UFD 300 Met Warlord at Base 500 MAIN.C Attacked Warlord 500 Warlord Defense Kills 700 Friendly Fire -254 Cogmind --------- Core Integrity 0/1000 Matter 30/300 Energy 80/100 System Corruption 0% Temperature Cool (66) Movement Hovering (126) Ox1 Location -4/Proximity Caves Parts ------- > --- POWER (1) -------- (None) > --- PROPULSION (8) --- Backup Propulsion III Cooled Antigrav System Combat Linear Gravjet Combat Linear Gravjet Combat Linear Gravjet Electron Diverter > --- UTILITY (6) ------ Advanced Heat Sink Small Storage Unit Improved Armor Integrity Analyzer Layered Medium Armor Plating > --- WEAPON (2) ------- Heavy Autocannon > --- INVENTORY (8) ---- Vortex Chain Reactor Experimental Shock Absorption System System Mapper Vortex Cannon (26) Enhanced Gauss Cannon Remote Datajack Multitool Peak State ------------ > --- POWER ------------ Light Antimatter Reactor > --- PROPULSION ------- Backup Propulsion III Cooled Antigrav System Combat Linear Gravjet Combat Linear Gravjet Combat Linear Gravjet Electron Diverter > --- UTILITY ---------- Advanced Heat Sink Advanced Heat Sink Small Storage Unit Improved Armor Integrity Analyzer Improved Weapon Shielding Layered Medium Armor Plating > --- WEAPON ----------- Heavy Autocannon > --- INVENTORY -------- Vortex Chain Reactor Experimental Shock Absorption System System Mapper Vortex Cannon Enhanced Gauss Cannon Remote Datajack Multitool [Rating: 102] Favorites ----------- Power Ion Engine Engine Ion Engine Power Core Light Fission Core Reactor Light Antimatter Reactor Propulsion Improved Flight Unit Treads Light Treads Leg Aluminum Leg Wheel Wheel Hover Unit Backup Propulsion III Flight Unit Improved Flight Unit Utility Small Storage Unit Device Structural Scanner Storage Small Storage Unit Processor Advanced Signal Interpreter Hackware Improved Hacking Suite Protection Gun Armor Weapon Improved Light Cannon Energy Gun Backup Laser III Energy Cannon Subdweller Beam Cannon Ballistic Gun Heavy Machine Gun Ballistic Cannon Improved Light Cannon Launcher Subdweller Shrapnel Launcher Special Weapon Multitool Build | -11 -10 -10 -9 -9 -6 -6 -6 -6 -5 -5 -5 -5 -4 ------- Run | Yrd Mat Sub Rec Scr Fac Was Fac DSF Fac Upp Upp War Pro Slots Evolved 10 | . . . . . 8 . . . 2 . . . . Power . | . . . . . . . . . . . . . . Propulsion 6 | . . . . . 6 . . . . . . . . Utility 4 | . . . . . 2 . . . 2 . . . . Weapon . | . . . . . . . . . . . . . . Parts Attached 138 | . 12 13 2 3 9 5 5 6 17 4 26 36 . Power 12 | . 1 . . . . . 1 . 4 . 1 5 . Engine 5 | . 1 . . . . . . . . . 1 3 . Core 6 | . . . . . . . 1 . 4 . . 1 . Reactor 1 | . . . . . . . . . . . . 1 . Propulsion 34 | . 6 . 2 . 5 3 . 3 3 . 5 7 . Treads 2 | . 2 . . . . . . . . . . . . Leg 1 | . . . . . . . . . . . 1 . . Wheel 5 | . 3 . 2 . . . . . . . . . . Hover 5 | . . . . . . . . . . . . 5 . Flight 21 | . 1 . . . 5 3 . 3 3 . 4 2 . Utility 40 | . 1 4 . . 3 2 3 1 7 1 6 12 . Device 20 | . 1 . . . 1 2 1 1 4 . 2 8 . Storage 6 | . . . . . . . 1 . 1 . 3 1 . Processor 4 | . . . . . . . 1 . 1 . 1 1 . Hackware 1 | . . . . . 1 . . . . . . . . Protection 9 | . . 4 . . 1 . . . 1 1 . 2 . Artifact . | . . . . . . . . . . . . . . Weapon 52 | . 4 9 . 3 1 . 1 2 3 3 14 12 . Energy Gun 7 | . 2 . . . . . . . . . 1 4 . Energy Cannon 10 | . . 4 . 3 . . . . . . . 3 . Ballistic Gun 17 | . . . . . . . . 2 1 3 9 2 . Ballistic Cannon 12 | . 2 3 . . . . . . . . 4 3 . Launcher 5 | . . 1 . . 1 . 1 . 2 . . . . Special Weapon 1 | . . 1 . . . . . . . . . . . Impact Weapon . | . . . . . . . . . . . . . . Slashing Weapon . | . . . . . . . . . . . . . . Piercing Weapon . | . . . . . . . . . . . . . . Special Melee Weapon . | . . . . . . . . . . . . . . Unidentified Prototypes 14 | . 1 . . . . 1 . . 3 . . 9 . Parts Lost 40 | . . 1 . . 1 4 . . 6 9 11 6 2 Power 5 | . . . . . 1 . . . 1 . 1 1 1 Propulsion 16 | . . 1 . . . 1 . . . 6 5 3 . Utility 11 | . . . . . . 2 . . 3 1 2 2 1 Weapon 8 | . . . . . . 1 . . 2 2 3 . . Highest Loss Streak 9 | . . 1 . . 1 2 . . 6 9 7 4 2 To Critical Strikes 1 | . . . . . . . . . . . 1 . . Average Slot Usage (%) 81 | . 97 99 94 100 56 65 59 81 96 57 54 58 66 Engine 7 | . 14 13 12 12 1 . . . . . . 2 . Treads 6 | . 11 27 5 . . . . . . . . . . Leg 1 | . 14 . . . . . . . . . 1 . . Wheel 4 | . 1 . 13 25 . . . . . . . . . Hover 3 | . . . . . . . . . . . . 15 29 Flight 8 | . . . . . 26 35 33 38 46 34 15 5 5 Device 3 | . 12 6 . . . 6 2 5 9 . 1 1 5 Storage 9 | . 14 13 12 12 . . 2 6 5 5 12 5 5 Processor 4 | . . . . . . . 5 6 10 11 11 10 5 Protection 5 | . . 7 12 12 10 13 6 1 . 2 . 3 5 Energy Gun 2 | . 14 . . . . . . . . . . 4 . Energy Cannon 5 | . . 14 12 12 3 . . . . . . . . Ballistic Gun 1 | . 1 . . . . . . 9 10 2 8 . . Ballistic Cannon 10 | . 12 14 25 25 6 3 . . . . . 2 5 Peak Build Rating 102 | 6 10 23 21 21 42 55 51 61 72 54 51 102 97 Average Rating 33 | 6 8 13 20 21 34 49 46 53 66 38 34 55 89 On Entrance 32 | 6 6 10 20 21 21 41 41 51 50 42 19 23 97 Naked Turns . | . . . . . . . . . . . . . . Heaviest Build 64 | 14 19 38 30 30 17 12 16 22 36 17 39 64 63 Greatest Support 63 | 20 40 40 26 26 20 29 20 35 40 37 17 63 63 Greatest Overweight (x) 16 | . . 1 2 1 . 2 . . 1 . 5 3 16 Average Overweight (x) . | . . . 1 . . . . . . . . . . Largest Inventory Capacity 8 | 8 8 8 8 8 8 5 8 8 8 8 8 8 8 Average Capacity 7 | 8 8 8 8 8 5 5 6 8 8 8 8 8 8 Most Carried 8 | 6 8 8 8 8 8 5 6 8 8 7 8 8 8 Average Carried 7 | 6 7 7 8 7 4 5 5 7 7 6 6 7 8 Final Capacity 8 | 8 8 8 8 8 5 5 8 8 8 8 8 8 8 Final Carried 8 | 6 8 8 8 8 5 5 6 8 8 6 7 8 8 Class Distribution -------------------- 41% | Mutant 24% | Gunner 18% | Scavenger-Mutant 7% | Sprinter 5% | Commander-Mutant Dominant Class ---------------- Mutant | -10/Materials Mutant | -10/Subcaves Gunner | -9/Recycling Gunner | -9/Scraptown Sprinter | -6/Factory Mutant | -6/Waste Mutant | -6/Factory Mutant | -6/DSF Sprinter | -5/Factory Mutant | -5/Upper Caves Scavenger-Mutant | -5/Upper Caves Scavenger-Mutant | -5/Warlord Scavenger-Mutant | -4/Proximity Caves Resources | -11 -10 -10 -9 -9 -6 -6 -6 -6 -5 -5 -5 -5 -4 ----------- Run | Yrd Mat Sub Rec Scr Fac Was Fac DSF Fac Upp Upp War Pro Matter Collected 3935 | 173 112 303 259 284 . . 450 93 402 312 833 598 116 Remotely 440 | . . . . . . . . . . . 176 264 . Salvage Created 2098 | . 196 236 227 . 56 . . 111 537 59 459 143 74 Parts 122 | . 14 16 16 . . . . 6 33 1 26 8 2 Haulers Intercepted 1 | . 1 . . . . . . . . . . . . Recyclers Shooed . | . . . . . . . . . . . . . . Parts Field Recycled . | . . . . . . . . . . . . . . Retrieved Matter . | . . . . . . . . . . . . . . Parts Self-Destructed 39 | . . 16 . . . . . . . 5 16 . 2 Prevented 2 | . . . . . . . . . . . 2 . . Kills | -11 -10 -10 -9 -9 -6 -6 -6 -6 -5 -5 -5 -5 -4 ------- Run | Yrd Mat Sub Rec Scr Fac Was Fac DSF Fac Upp Upp War Pro Combat Hostiles Destroyed 53 | . 3 9 3 . 2 . . 4 13 1 11 5 2 Melee 1 | . . . . . . . . . . . . . 1 Guns 25 | . 3 . . . . . . 4 7 1 10 . . Cannons 18 | . . 7 3 . 1 . . . . . 1 5 1 AOE 9 | . . 2 . . 1 . . . 6 . . . . Classes Destroyed 20 | . 3 5 2 . 2 . . 2 2 . 2 2 . Builder 1 | . . . 1 . . . . . . . . . . Hauler 1 | . 1 . . . . . . . . . . . . Recycler 1 | . . . 1 . . . . . . . . . . Operator 2 | . 1 . . . . . . . 1 . . . . Turret 2 | . . 2 . . . . . . . . . . . Watcher 1 | . . . . . . . . . 1 . . . . Swarmer 16 | . . 5 . . . . . . 4 . 7 . . Cutter 3 | . . . . . . . . 3 . . . . . Grunt 14 | . 3 . . . . . . . 5 . 3 3 . Brawler 1 | . . . . . 1 . . . . . . . . Protector 1 | . . . . . . . . . 1 . . . . Sentry 7 | . . 1 3 . . . . . 2 1 . . . Demolisher 1 | . . . . . . . . . . . . 1 . Specialist 1 | . . . . . . . . 1 . . . . . Hunter 4 | . . . . . 1 . . . 1 . . . 2 Executioner 1 | . . . . . . . . . . . . 1 . Artisan 1 | . . 1 . . . . . . . . . . . Subdweller 3 | . . 3 . . . . . . . . . . . Samaritan 1 | . . . . . . . . . . . 1 . . Mutant 1 | . . . . . . . . . . . 1 . . Best Kill Streak 6 | . 2 5 2 . 2 . . 3 6 1 5 3 2 Combat Bots Only 5 | . 2 4 1 . 2 . . 3 5 1 5 3 2 Max Kills in Single Turn 3 | . 1 2 1 . 1 . . 1 3 1 1 1 1 Gunslinging . | . . . . . . . . . . . . . . Exploded 3 | . . 2 . . 1 . . . 3 . . . . Melee 1 | . . . . . . . . . . . . . 1 Uniques/NPCs Destroyed . | . . . . . . . . . . . . . . Combat | -11 -10 -10 -9 -9 -6 -6 -6 -6 -5 -5 -5 -5 -4 -------- Run | Yrd Mat Sub Rec Scr Fac Was Fac DSF Fac Upp Upp War Pro Hostile Shots Fired 526 | . 22 56 4 . 50 2 . 11 83 73 111 57 57 Missed 215 | . 11 19 2 . 27 . . 3 40 28 38 24 23 Damage Taken 5854 | . 126 540 31 . 385 82 . 111 919 954 1329 775 602 Core 1333 | . 34 179 . . 83 . . 17 119 263 334 227 77 Absorbed by Shields . | . . . . . . . . . . . . . . Redirected to Shielding 251 | . . . . . . . . . 51 111 . 74 15 Regen/Repaired (Parts) 188 | . . . . . . . 36 . . . . 152 . Core Remaining (%) 67 | 100 . . . 14 . . . 88 . . . . . Volleys Fired 252 | . 32 40 7 . 15 . . 9 48 11 48 27 15 Largest 4 | . 2 4 3 . 2 . . 2 2 2 2 1 1 Hottest 238 | . 80 238 158 . 107 . . 60 69 60 114 90 90 Shots Fired 439 | . 64 79 22 . 21 . . 18 91 22 80 27 15 Gun 239 | . 44 . . . . . . 18 85 22 69 1 . Cannon 187 | . 20 75 22 . 18 . . . . . 11 26 15 Launcher 12 | . . 3 . . 3 . . . 6 . . . . Special 1 | . . 1 . . . . . . . . . . . Kinetic 323 | . 24 38 15 . 15 . . 18 85 22 71 20 15 Thermal 64 | . 4 41 7 . 3 . . . . . 9 . . Explosive 9 | . . . . . 3 . . . 6 . . . . Electromagnetic 36 | . 36 . . . . . . . . . . . . Entropic 7 | . . . . . . . . . . . . 7 . Robot Hit Streak 17 | . 6 17 9 . 6 . . 4 6 8 17 4 2 Robot Miss Streak 4 | . 3 2 1 . 4 . . 4 3 1 3 3 2 Penetration Max . | . . . . . . . . . . . . . . Secondary Targets 4 | . . . . . . . . . 1 1 2 . . Max Gunslinging Chain 1 | . . . . . . . . . 1 1 1 . . Shots Hit Robots 228 | . 24 26 7 . 12 . . 9 57 16 52 16 9 Core Hits 111 | . 8 11 5 . 7 . . 5 40 3 23 5 4 Critical Kills 1 | . . . . . . . . . 1 . . . . Critical Parts Destroyed 3 | . . . . . . . . . 3 . . . . Critical Strikes 11 | . . 1 . . . . . . 4 1 . 3 2 Destroy 5 | . . . . . . . . . 4 1 . . . Blast 3 | . . 1 . . . . . . . . . . 2 Sunder 3 | . . . . . . . . . . . . 3 . Melee Attacks . | . . . . . . . . . . . . . . Impact . | . . . . . . . . . . . . . . Slashing . | . . . . . . . . . . . . . . Piercing . | . . . . . . . . . . . . . . Sneak Attacks . | . . . . . . . . . . . . . . Combat Hostiles . | . . . . . . . . . . . . . . Follow-up Attacks . | . . . . . . . . . . . . . . Damage Inflicted 9093 | . 713 909 288 . 349 . . 223 2721 412 1198 1574 706 Guns 3333 | . 304 . . . . . . 223 1452 412 942 . . Cannons 3575 | . 24 568 288 . 190 . . . . . 256 1574 675 Explosions 2144 | . 385 331 . . 159 . . . 1269 . . . . Melee . | . . . . . . . . . . . . . . Ramming 31 | . . . . . . . . . . . . . 31 Kinetic 5883 | . 49 520 125 . 190 . . 223 1452 412 1054 1183 675 Thermal 1093 | . 397 389 163 . . . . . . . 144 . . Explosive 1428 | . . . . . 159 . . . 1269 . . . . Electromagnetic 267 | . 267 . . . . . . . . . . . . Impact . | . . . . . . . . . . . . . . Slashing . | . . . . . . . . . . . . . . Piercing . | . . . . . . . . . . . . . . Entropic 391 | . . . . . . . . . . . . 391 . Highest Corruption 2 | . 1 1 2 . . . . . 1 2 2 2 . Average Corruption 1 | . 1 1 1 . . . . . 1 1 2 2 . Corruption Purged . | . . . . . . . . . . . . . . Corruption Blocked . | . . . . . . . . . . . . . . Effects 26 | . 1 9 3 . . . . . 3 1 8 1 . Message Errors 5 | . . 2 1 . . . . . 1 . 1 . . Matter Fused 8 | . 1 2 . . . . . . 1 . 3 1 . Heat Flow Errors 4 | . . 3 . . . . . . . . 1 . . Energy Discharges 4 | . . 1 . . . . . . 1 1 1 . . Parts Rejected 2 | . . 1 . . . . . . . . 1 . . Data Loss (minor) 1 | . . . 1 . . . . . . . . . . Misfires 2 | . . . 1 . . . . . . . 1 . . Overload Shots . | . . . . . . . . . . . . . . Overflow Damage 250 | . 28 61 8 . . . . . 41 . . 104 8 Projectiles 172 | . 19 33 8 . . . . . . . . 104 8 Explosions 78 | . 9 28 . . . . . . 41 . . . . Melee . | . . . . . . . . . . . . . . Knockbacks 23 | . . . 3 . 2 . . . . . 3 9 6 Impact . | . . . . . . . . . . . . . . Kinetic 21 | . . . 3 . 2 . . . . . 3 7 6 Secondary 2 | . . . . . . . . . . . . 2 . Self-Inflicted Damage 49 | . . . . . . . . . 34 . . . 15 Shots 4 | . . . . . . . . . 4 . . . . Rammed 1 | . . . . . . . . . . . . . 1 Targets Rammed 1 | . . . . . . . . . . . . . 1 Kicked . | . . . . . . . . . . . . . . Crushed . | . . . . . . . . . . . . . . Highest Temperature 643 | . 168 643 251 . 33 . . . 280 10 334 178 112 Average Temperature 89 | . 65 134 94 . 21 . . . 80 4 147 61 59 Received Heat Transfer 1586 | . 66 451 27 . 18 . . . 294 90 427 186 27 Effects 8 | . . 7 . . . . . . 1 . . . . Shutdowns 1 | . . 1 . . . . . . . . . . . Energy Bleed 1 | . . . . . . . . . 1 . . . . Damage (minor) 1 | . . 1 . . . . . . . . . . . Damage (major) 3 | . . 3 . . . . . . . . . . . Damage (core) 2 | . . 2 . . . . . . . . . . . Siege Activations . | . . . . . . . . . . . . . . Robots Corrupted . | . . . . . . . . . . . . . . Combat Hostiles . | . . . . . . . . . . . . . . Parts Fried . | . . . . . . . . . . . . . . Impact Corruptions . | . . . . . . . . . . . . . . Robots Melted . | . . . . . . . . . . . . . . Combat Hostiles . | . . . . . . . . . . . . . . Parts Melted 3 | . . 2 . . . . . . 1 . . . . Heat Transferred 1361 | . 337 543 222 . . . . . . . 259 . . Parts Sabotaged . | . . . . . . . . . . . . . . Parts Stolen . | . . . . . . . . . . . . . . Parts Stripped . | . . . . . . . . . . . . . . Power Chain Reactions 2 | . 2 . . . . . . . . . . . . Alert | -11 -10 -10 -9 -9 -6 -6 -6 -6 -5 -5 -5 -5 -4 ------- Run | Yrd Mat Sub Rec Scr Fac Was Fac DSF Fac Upp Upp War Pro Peak Influence 1022 | . 186 . 121 . 187 65 36 130 1022 . . . . Initial 67 | . . . 60 . . 65 28 25 67 . . . . Average 150 | . 87 . 72 . 76 60 35 71 448 . . . . Maximum Alert Level 3 | . . . . . . . . . 3 . . . . Low Security (%) 86 | 100 100 . 100 . 100 100 100 100 34 . . . . Level 1 2 | . . . . . . . . . 9 . . . . Level 2 3 | . . . . . . . . . 19 . . . . Level 3 7 | . . . . . . . . . 36 . . . . Level 4 . | . . . . . . . . . . . . . . Level 5 . | . . . . . . . . . . . . . . High Security . | . . . . . . . . . . . . . . Max Security . | . . . . . . . . . . . . . . Squads Dispatched 16 | . 1 . . . 3 . 1 1 10 . . . . Investigation 7 | . . . . . 3 . 1 . 3 . . . . Extermination 1 | . . . . . . . . . 1 . . . . Reinforcement 5 | . 1 . . . . . . 1 3 . . . . Assault 1 | . . . . . . . . . 1 . . . . Garrison 2 | . . . . . . . . . 2 . . . . Intercept . | . . . . . . . . . . . . . . Searches Triggered . | . . . . . . . . . . . . . . Construction Impeded 3 | . . . . . . . . . 3 . . . . Haulers Reinforced . | . . . . . . . . . . . . . . Active Scanning Responses . | . . . . . . . . . . . . . . Cargo Convoy Interrupts . | . . . . . . . . . . . . . . Stealth | -11 -10 -10 -9 -9 -6 -6 -6 -6 -5 -5 -5 -5 -4 --------- Run | Yrd Mat Sub Rec Scr Fac Was Fac DSF Fac Upp Upp War Pro Distress Signals 5 | . . . . . 1 . . . 2 . . 2 . Communications Jammed . | . . . . . . . . . . . . . . Distress Signals . | . . . . . . . . . . . . . . Times Spotted 154 | . 6 10 1 . 15 6 . 2 29 14 17 51 3 Peak Tracking Total 18 | . 2 4 . . 12 6 . 2 7 10 5 18 2 Tactical Retreats 8 | . . 1 . . 1 1 . 1 1 2 1 . . Traps | -11 -10 -10 -9 -9 -6 -6 -6 -6 -5 -5 -5 -5 -4 ------- Run | Yrd Mat Sub Rec Scr Fac Was Fac DSF Fac Upp Upp War Pro Traps Triggered 2 | . 1 . . . 1 . . . . . . . . Indirectly . | . . . . . . . . . . . . . . Trap Hack Attempts . | . . . . . . . . . . . . . . Triggered . | . . . . . . . . . . . . . . Disarmed . | . . . . . . . . . . . . . . Reprogrammed . | . . . . . . . . . . . . . . Reused . | . . . . . . . . . . . . . . Traps Extracted . | . . . . . . . . . . . . . . Installed . | . . . . . . . . . . . . . . Triggered 18 | . . . . . . . . . . . . 18 . Machines | -11 -10 -10 -9 -9 -6 -6 -6 -6 -5 -5 -5 -5 -4 ---------- Run | Yrd Mat Sub Rec Scr Fac Was Fac DSF Fac Upp Upp War Pro Machines Disabled 15 | . 4 4 . . . . . . 5 . 1 1 . Max in Single Turn 3 | . 3 2 . . . . . . 1 . 1 1 . Machines Repaired . | . . . . . . . . . . . . . . Machines Dismantled . | . . . . . . . . . . . . . . Machines Sabotaged . | . . . . . . . . . . . . . . Overloaded Fab Kills . | . . . . . . . . . . . . . . Hacking | -11 -10 -10 -9 -9 -6 -6 -6 -6 -5 -5 -5 -5 -4 --------- Run | Yrd Mat Sub Rec Scr Fac Was Fac DSF Fac Upp Upp War Pro Machines Accessed 22 | . . 2 3 4 4 . 3 . 4 . . 2 . Terminals 9 | . . . 2 . 3 . 1 . 3 . . . . Fabricators . | . . . . . . . . . . . . . . Repair Stations 1 | . . . . . . . 1 . . . . . . Recycling Units 2 | . . . 1 . . . . . 1 . . . . Scanalyzers 1 | . . . . . . . 1 . . . . . . Garrison Access 1 | . . . . . 1 . . . . . . . . Total Hacks 71 | . . 4 12 15 12 . 7 . 16 . . 5 . Successful 39 | . . 4 3 15 1 . 3 . 8 . . 5 . Failed 32 | . . . 9 . 11 . 4 . 8 . . . . Catastrophic 2 | . . . . . 1 . . . 1 . . . . Database Lockouts . | . . . . . . . . . . . . . . Manual 24 | . . . 7 . 4 . 3 . 10 . . . . Terminals 34 | . . . 9 . 9 . 2 . 14 . . . . Fabricators . | . . . . . . . . . . . . . . Repair Stations 3 | . . . . . . . 3 . . . . . . Recycling Units 5 | . . . 3 . . . . . 2 . . . . Scanalyzers 2 | . . . . . . . 2 . . . . . . Garrison Access 3 | . . . . . 3 . . . . . . . . Terminal Hacks 32 | . . 4 3 15 1 . 1 . 3 . . 5 . Record 22 | . . 3 . 15 . . . . . . . 4 . Part Schematic 1 | . . . 1 . . . . . . . . . . Robot Analysis 3 | . . . 2 . . . . . 1 . . . . Open Door 1 | . . . . . . . . . . . . 1 . Open DSF 1 | . . . . . . . 1 . . . . . . Branch Access Points 1 | . . . . . . . . . 1 . . . . Alert Level 1 | . . . . . 1 . . . . . . . . Zone Layout 1 | . . . . . . . . . 1 . . . . Derelict Proto ID Bank 1 | . . 1 . . . . . . . . . . . Fabricator Hacks . | . . . . . . . . . . . . . . Repair Station Hacks . | . . . . . . . . . . . . . . Recycling Unit Hacks 1 | . . . . . . . . . 1 . . . . Report Inventory 1 | . . . . . . . . . 1 . . . . Scanalyzer 1 | . . . . . . . 1 . . . . . . Insert Component 1 | . . . . . . . 1 . . . . . . Garrison Access Hacks . | . . . . . . . . . . . . . . Unauthorized Hacks 5 | . . . . . . . 1 . 4 . . . . Terminals 3 | . . . . . . . . . 3 . . . . Botnet 2 | . . . . . . . . . 2 . . . . Operators 1 | . . . . . . . . . 1 . . . . Fabricators . | . . . . . . . . . . . . . . Repair Stations 2 | . . . . . . . 1 . 1 . . . . Patch 1 | . . . . . . . 1 . . . . . . Recycling Units . | . . . . . . . . . . . . . . Scrapoids 1 | . . . . . . . . . 1 . . . . Scanalyzers . | . . . . . . . . . . . . . . Garrison Access . | . . . . . . . . . . . . . . Data Cores Recovered 1 | . . . . . . . . . 1 . . . . Used . | . . . . . . . . . . . . . . Hacking Detections 13 | . . . 3 . 4 . 3 . 3 . . . . Full Trace Events 8 | . . . 3 . 3 . . . 2 . . . . Feedback Events 2 | . . . 1 . . . . . 1 . . . . Corruption 2 | . . . 1 . . . . . 1 . . . . Feedback Blocked . | . . . . . . . . . . . . . . Robot Schematics Acquired . | . . . . . . . . . . . . . . Robots Built . | . . . . . . . . . . . . . . Authchips . | . . . . . . . . . . . . . . Time . | . . . . . . . . . . . . . . Total Robot Build Rating . | . . . . . . . . . . . . . . Part Schematics Acquired 1 | . . . 1 . . . . . . . . . . Parts Built . | . . . . . . . . . . . . . . Authchips . | . . . . . . . . . . . . . . Time . | . . . . . . . . . . . . . . Total Part Build Rating . | . . . . . . . . . . . . . . Parts Repaired . | . . . . . . . . . . . . . . Time . | . . . . . . . . . . . . . . Parts Recycled . | . . . . . . . . . . . . . . Recycled Matter . | . . . . . . . . . . . . . . Retrieved Matter . | . . . . . . . . . . . . . . Retrieved Components . | . . . . . . . . . . . . . . Parts Scanalyzed 1 | . . . . . . . 1 . . . . . . Part Schematics Acquired . | . . . . . . . . . . . . . . Parts Damaged 1 | . . . . . . . 1 . . . . . . Bothacking | -11 -10 -10 -9 -9 -6 -6 -6 -6 -5 -5 -5 -5 -4 ------------ Run | Yrd Mat Sub Rec Scr Fac Was Fac DSF Fac Upp Upp War Pro Used RIF Installer . | . . . . . . . . . . . . . . Robots Hacked . | . . . . . . . . . . . . . . Non-combat . | . . . . . . . . . . . . . . Combat . | . . . . . . . . . . . . . . Robot Hacks Applied . | . . . . . . . . . . . . . . Relay Couplers Released . | . . . . . . . . . . . . . . Fabnet Peak Effective % . | . . . . . . . . . . . . . . Robots Rewired 6 | . 1 . . . . . . . . . . 5 . Allies Hacked . | . . . . . . . . . . . . . . Hacks Repelled . | . . . . . . . . . . . . . . Allies | -11 -10 -10 -9 -9 -6 -6 -6 -6 -5 -5 -5 -5 -4 -------- Run | Yrd Mat Sub Rec Scr Fac Was Fac DSF Fac Upp Upp War Pro Total Allies 11 | . 1 . . . . . . . 5 . . 5 . Largest Group 5 | . 1 . . . . . . . 5 . . 5 . Highest-Rated Group 235 | . 5 . . . . . . . 235 . . 213 . Highest-Rated Ally 49 | . 5 . . . . . . . 47 . . 49 . Total Orders . | . . . . . . . . . . . . . . Ally Attacks 110 | . 1 . . . . . . . 79 . . 30 . Total Damage 2971 | . 10 . . . . . . . 1369 . . 1592 . Kills 24 | . 1 . . . . . . . 9 . . 14 . Allies Corrupted . | . . . . . . . . . . . . . . Allies Melted . | . . . . . . . . . . . . . . Intel | -11 -10 -10 -9 -9 -6 -6 -6 -6 -5 -5 -5 -5 -4 ------- Run | Yrd Mat Sub Rec Scr Fac Was Fac DSF Fac Upp Upp War Pro Robot Analysis Total 3 | . . . 2 . . . . . 1 . . . . Derelict Logs Recovered 2 | . . . . . . . . . . 1 1 . . Drone Launches . | . . . . . . . . . . . . . . Drone Recoveries . | . . . . . . . . . . . . . . Exploration | -11 -10 -10 -9 -9 -6 -6 -6 -6 -5 -5 -5 -5 -4 ------------- Run | Yrd Mat Sub Rec Scr Fac Was Fac DSF Fac Upp Upp War Pro Turns Passed 5750 | 1 512 1123 540 771 95 112 113 53 366 148 596 1193 127 Spaces Moved 4833 | 1 275 584 353 826 116 182 262 51 467 294 410 961 51 Core 130 | . . . . . . 6 . . 2 . 54 66 2 Treads 791 | . 112 584 95 . . . . . . . . . . Legs 241 | 1 153 . . . . . . . . . 73 14 . Wheels 1094 | . 10 . 258 826 . . . . . . . . . Hover 930 | . . . . . . . . . . . . 881 49 Flight 1647 | . . . . . 116 176 262 51 465 294 283 . . Fastest Speed 15 | 120 80 160 105 90 31 28 31 19 15 16 26 47 47 Average Speed 88 | 120 134 161 141 92 31 35 37 28 15 33 94 88 101 Slowest Speed 850 | 120 160 240 240 105 31 150 40 31 100 34 300 200 850 Overloaded Moves 27 | . . . . . . . . . . 14 9 4 . Propulsion Burnouts . | . . . . . . . . . . . . . . Robots Hopped 24 | . 5 . . . . 12 1 . 3 2 1 . . Cave-ins Triggered . | . . . . . . . . . . . . . . Exploration Rate (%) 40 | 2 34 39 71 58 5 97 6 46 15 49 56 75 16 Regions Visited 13 Branch Regions 7 Pre-discovered Areas 3 | . . 1 . 1 . . . . . 1 . . . Known Exits Taken 4 | . . . . . . . 1 . 1 1 1 . . Unknown Exits Taken 6 | 1 1 1 1 1 . . . . . . . 1 . Scrap Searched 14 | . . 8 . 3 . . . . . 1 2 . . Spaces Dug 5 | . 1 4 . . . . . . . . . . . Terrain Destroyed 208 | . 45 40 4 . 46 . . . 55 . 6 8 4 Melee . | . . . . . . . . . . . . . . Projectile 46 | . 1 6 4 . . . . . 17 . 6 8 4 AOE 162 | . 44 34 . . 46 . . . 38 . . . . Terrain Rammed . | . . . . . . . . . . . . . . Walls Destroyed . | . . . . . . . . . . . . . . Machines Disabled . | . . . . . . . . . . . . . . Actions | -11 -10 -10 -9 -9 -6 -6 -6 -6 -5 -5 -5 -5 -4 --------- Run | Yrd Mat Sub Rec Scr Fac Was Fac DSF Fac Upp Upp War Pro Total 5876 | 1 345 686 377 837 155 214 274 71 670 322 536 1276 112 Wait 474 | 1 16 34 14 3 8 40 1 1 133 12 42 124 45 Move 4779 | . 264 583 352 825 116 163 259 50 460 289 407 960 51 Hop 18 | . 5 . . . . 6 1 . 3 2 1 . . Pick Up 48 | . 8 8 1 2 1 . 4 3 3 2 7 9 . Fast Attach 45 | . 1 . 1 . 3 3 3 5 2 . 10 17 . Attach 35 | . 2 2 . . 5 . 1 1 3 4 7 10 . Detach 16 | . . . . . 2 . 1 1 1 1 2 8 . Swap 58 | . 9 11 1 3 1 2 1 . 12 . 9 9 . Drop 55 | . 6 8 1 4 4 . 3 1 5 1 3 19 . Fire 252 | . 32 40 7 . 15 . . 9 48 11 48 27 15 Melee . | . . . . . . . . . . . . . . Ram 1 | . . . . . . . . . . . . . 1 Kick . | . . . . . . . . . . . . . . Crush . | . . . . . . . . . . . . . . Escape Stasis . | . . . . . . . . . . . . . . Rewire 95 | . 2 . . . . . . . . . . 93 . Trap . | . . . . . . . . . . . . . . Miscellaneous . | . . . . . . . . . . . . . . Route ------- -11/Scrapyard -10/Materials (discovered 2 exits: [*Min] / *Sub) -10/Subcaves (discovered 2 exits: [*Mat] / *Rec) -9/Recycling -9/Scraptown -6/Factory -6/Waste -6/Factory -6/DSF -5/Factory (discovered 2 exits: *Upp x2) -5/Upper Caves -5/Upper Caves -5/Warlord -4/Proximity Caves History --------- Turn | Location | Event 2 | -11/Scrapyard | Discovered new exit (range 0) 2 | -11/Scrapyard | Entered Materials 166 | -10/Materials | Discovered new exit (range 12) 335 | -10/Materials | Build established: Mutant 455 | -10/Materials | Discovered new exit (range 9) 514 | -10/Materials | Entered Subcaves 670 | -10/Subcaves | Visited 4L-MR0's lab 693 | -10/Subcaves | Found Gun Armor 772 | -10/Subcaves | A swath of the cavern ceiling suddenly collapsed 918 | -10/Subcaves | Visited Clippyterm 923 | -10/Subcaves | Learned location of Deep Caves (-6) 1122 | -10/Subcaves | Shifting Twisted Machinery released Sub. Shrapnel Launcher 1148 | -10/Subcaves | Core integrity fell below 50% 1227 | -10/Subcaves | Discovered new exit (range 9) 1404 | -10/Subcaves | Shifting Twisted Machinery released Battle Rifle 1409 | -10/Subcaves | Ambushed by Subdweller buried in earth 1412 | -10/Subcaves | Core integrity fell below 20% 1520 | -10/Subcaves | Attached Gun Armor, gained temporary slots: Weapon x2 1590 | -10/Subcaves | Discovered new exit (range 11) 1637 | -10/Subcaves | Entered Recycling 1809 | -9/Recycling | Build established: Gunner 2152 | -9/Recycling | Scanned before Scraplab entrance 2167 | -9/Recycling | Entered Scraplab 2176 | -9/Recycling | Discovered new exit (range 2) 2177 | -9/Recycling | Entered Scraptown 2177 | -9/Scraptown | System corruption cleaned by C-Scrubber 2370 | -9/Scraptown | Visited UFD Registry 2370 | -9/Scraptown | Registered with UFD as "Wirerigger" 2382 | -9/Scraptown | Visited Cyclists 2388 | -9/Scraptown | Entered Cyclist Reading Room 2432 | -9/Scraptown | Visited IN-MT5's Study 2454 | -9/Scraptown | Visited Symbiants 2503 | -9/Scraptown | Visited The Evicted 2568 | -9/Scraptown | Visited Curators Association 2605 | -9/Scraptown | Visited Research Penetration Think Tank 2633 | -9/Scraptown | Visited Junk Repository 2651 | -9/Scraptown | Visited DA-N13 Charitable Foundation 2661 | -9/Scraptown | Found DCF Scrap (27 items) 2691 | -9/Scraptown | Visited Scrap Suit Storage 2716 | -9/Scraptown | Visited Junk Repository 2789 | -9/Scraptown | Visited Abandonware Association 2797 | -9/Scraptown | Learned abandonware demo "OVRCLOCK.EXE" 2802 | -9/Scraptown | Learned abandonware demo "HACKBUD.EXE" 2831 | -9/Scraptown | Visited Science Guys 2924 | -9/Scraptown | Heard Great Nut preacher, LISTEN AND RECITE! 2934 | -9/Scraptown | Discovered new exit (range 9) 2948 | -9/Scraptown | Entered Factory 2948 | -6/Factory | Evolved 8 slots: Propulsion x6, Utility x2 3043 | -6/Factory | Manually triggered Chute Trap 3043 | -6/Factory | Sucked down chute 3043 | -6/Factory | Entered Waste 3064 | -6/Waste | Spotted C-40 Crusher 3100 | -6/Waste | Crushed by Compactor (1 part destroyed, 1 dropped) 3111 | -6/Waste | Spotted C-40 Crusher 3111 | -6/Waste | Spotted C-40 Crusher 3115 | -6/Waste | Spotted C-40 Crusher 3117 | -6/Waste | Spotted C-40 Crusher 3119 | -6/Waste | Spotted C-40 Crusher 3124 | -6/Waste | Discovered new exit (range 16) 3150 | -6/Waste | Crushed by Compactor (1 part destroyed, 1 dropped) 3155 | -6/Waste | Entered Factory 3263 | -6/Factory | Identified exit to DSF 3268 | -6/Factory | Entered DSF 3291 | -6/DSF | Additional patrols routed to DSF 3300 | -6/DSF | Discovered new exit (range 13) 3321 | -6/DSF | Entered Factory 3321 | -5/Factory | Evolved 2 slots: Utility x2 3431 | -5/Factory | Scrapoid reinforcements arrived 3459 | -5/Factory | Identified exit to Upper Caves 3552 | -5/Factory | Garrison activated, responded to threat 3606 | -5/Factory | Lost 3 allies 3621 | -5/Factory | First assault squad dispatched 3687 | -5/Factory | Entered Upper Caves 3718 | -5/Upper Caves | Lost 6 parts (1p3u2w) 3735 | -5/Upper Caves | Attracted the attention of an 0b10 checkpoint 3799 | -5/Upper Caves | Encountered a Warlord checkpoint 3828 | -5/Upper Caves | Lost 9 parts (6n1u2w) 3832 | -5/Upper Caves | Discovered new exit (range 8) 3835 | -5/Upper Caves | Identified exit to Upper Caves 3835 | -5/Upper Caves | Entered another Upper Caves area 3844 | -5/Upper Caves | Learned Factory terminal intel 3863 | -5/Upper Caves | Encountered a Warlord checkpoint 4132 | -5/Upper Caves | Attacked by a delusional Derelict stockpiling parts 4237 | -5/Upper Caves | Core integrity fell below 50% 4309 | -5/Upper Caves | Lost 7 parts (1p2n2u2w) 4426 | -5/Upper Caves | Discovered new exit (range 3) 4430 | -5/Upper Caves | Identified exit to Warlord 4431 | -5/Upper Caves | Entered Warlord 4469 | -5/Warlord | System corruption cleaned by Quarantine Array 4629 | -5/Warlord | Rebuked by Warlord 4638 | -5/Warlord | Warlord's base attacked by MAIN.C 4813 | -5/Warlord | Found Prototype Energy Gun 4813 | -5/Warlord | Identified Vortex Rail 4816 | -5/Warlord | Found Vortex Rail 4828 | -5/Warlord | Found Prototype Energy Cannon 4830 | -5/Warlord | Found Prototype Energy Cannon 4942 | -5/Warlord | Found Prototype Device 4942 | -5/Warlord | Identified System Purifier 4953 | -5/Warlord | Found Prototype Device 4953 | -5/Warlord | Identified Exp. Phase Shifter 4965 | -5/Warlord | Found Prototype Reactor 4970 | -5/Warlord | Found Prototype Hackware 4988 | -5/Warlord | Warlord forces counterattacked 5009 | -5/Warlord | Build established: Commander-Mutant 5063 | -5/Warlord | Found Prototype Ballistic Cannon 5063 | -5/Warlord | Identified Hvy. Autocannon 5065 | -5/Warlord | Identified Vortex Cannon (x2) 5094 | -5/Warlord | Spotted Executioner 5094 | -5/Warlord | Spotted Striker 5096 | -5/Warlord | Spotted Striker 5116 | -5/Warlord | Allies destroyed Striker 5122 | -5/Warlord | Core integrity fell below 20% 5122 | -5/Warlord | Allies destroyed Executioner 5130 | -5/Warlord | Allies destroyed Striker 5158 | -5/Warlord | Lost 4 parts (1p1n2u) 5164 | -5/Warlord | Lost 21 allies 5313 | -5/Warlord | Warlord base infiltrated, sounded retreat 5329 | -5/Warlord | Build established: Scavenger-Mutant 5366 | -5/Warlord | Lost 8 allies 5433 | -5/Warlord | Spotted Executioner 5436 | -5/Warlord | Destroyed Executioner 5461 | -5/Warlord | Found Prototype Device 5461 | -5/Warlord | Identified Exp. Shock Absorption System 5482 | -5/Warlord | Spotted Striker 5519 | -5/Warlord | Spotted B-86 Titan 5574 | -5/Warlord | Spotted Executioner 5618 | -5/Warlord | Discovered new exit (range 14) 5624 | -5/Warlord | Entered Proximity Caves 5638 | -4/Proximity Caves | Lost 5 allies 5745 | -4/Proximity Caves | Attracted the attention of an 0b10 checkpoint 5751 | -4/Proximity Caves | Destroyed by Y-64 Sentinel with Wave Gun Last Messages --------------- 05663_ Slug penetrates Wall. 05664_ Acquired 1 matter. 05664_ Acquired 11 matter. 05665_ Wall collapses. 05665_ Slammed into H-77 Assassin. 05665_ H-77 Assassin destroyed. 05665_ Destabilizing: Core damaged (-30). 05666_ Acquired 74 matter. 05666_ Penetrated by Slug. 05666_ Acquired 16 matter. 05669_ H-77 Assassin suffers critical hit (Blast). 05669_ Destroyed Imp. Targeting Computer. 05669_ H-77 Assassin destroyed. 05671_ Acquired 2 matter. 05676_ Coil Gun fries itself beyond repair. 05679_ Acquired 12 matter. 05682_ Imp. Targeting Computer fries itself beyond repair. 05744_ Penetrated by Slug. 05745_ Y-64 Sentinel: "INTERCEPTING UNREGISTERED DERELICT." 05749_ Slug penetrates Wall. Map ----- +----------------------------------------------------+ | | | | | | | | | | | ?????????????????????????????????????????????????? | | ?????????????????????????????????????????????????? | | ?????????????????????????????????????????????????? | | ?????????????????????????????????????????????????? | | ?????????????????????????????????????????????????? | | ?????????????????????????????????????????????????? | | ?????????????????????????????????????????????????? | | ?????????????????????????????????????????????????? | | ?????????????????????????????????????????????????? | | ?????????????????????????????????????????????????? | | ?????????????????????????????????????????????????? | | ?????????????????????????????????????????????????? | | ?????????????????????????????????????????????????? | | ?????????????????????????????????????????????????? | | ???????????????####??????????????????????????????? | | ??????###??????# ##?????????????????????????????? | | ???#### #?????# #?????????????????????????????? | | ???# #????# #?????????????????????????????? | | #### ###?# #????####?????????????????????? | | ? ### #???## ##????????????????????? | | ?# ??# ## ##### @ ## #????????????????? | | ## #??# #????????????????? | | #???# ### #????????????????? | | ##?## ## #? #????????????????? | | ### ### #? #????????????????? | | #?# #? Y ??????????????? | | #?# #? % ????????????? | | # ## #?# ## ???????????? | | # #?# ##? # ???????????? | | ### ##?? # ???????????? | | ##??? #; ?## ????????????? | | #????# ## ??? ????????????? | | ### ##?# ???????????????? | | ##?? ##???? ???????????????? | | # #### ### #??? #??????????????????????? | | # ##??# #??# #??? ???????????????????????? | | # ###??? #???###??? ????????????????????????? | | ###????# #?????????##??????????????????????????? | | ???????# #?????????????????????????????????????? | | ???????# ?????????????????????????????????????? | | ???????## ?????????????????????????????????????? | | ????????# ##????????????????????????????????????? | | #??????? #?????????????????????????????????????? | | ##?????? #?????????????????????????????????????? | | ##????? ?????????????????????????????????????? | +----------------------------------------------------+ Best States ------------- Heat Dissipation 78 Energy Generation 21 Energy Capacity 700 Matter Stores 550 Matter Capacity 550 Sight Range 16 Robot Scan Range 15 Terrain Scan Density 10 Power Amplification 20 Additional Mass Support 6 Armor Coverage 225 Resistance: KI 10 Propulsion Shielding 66 Weapon Shielding 66 Evasion (%) 67 Target Analysis 5 Armor Integrity Analysis 40 Recoil Reduction 2 Particle Charging 20 Kinecelleration 40 Salvage Targeting 2 Offensive Hacking 12 Item Schematics ----------------- Arm. Huge Wheel | -9/Recycling | Hacked Robot Schematics ------------------ None Fabricated ------------ Nothing Alien Tech Used ----------------- None Achievements -------------- None Challenges ------------ None Game ------ Seed SuspensionDynamicClaymores Manual? 0 Play Time 00:58:30 Cumulative 958.6 hours Start 2024.10.04 @ 18:39:33 End 2024.10.04 @ 23:53:15 Sessions 5 Manual Loads 0 Difficulty Rogue Special Mode None Game No. 1170 Rogue 890 Adventurer 124 Explorer 156 Win Type - Total 41 Types 28/0/8/3/1/0/0/1/0 Lore% 85 Gallery% 90 Achievement% 78 Wizard Run 0 Options --------- Layout 0 ASCII 0 Keyboard 1 Movement Numpad Keybinds 0 Fullscreen 2 Font 18/X11 Map View 76x50 Zoom Use 0% Tactical HUD 1 Map Filters NONE Filters NONE Steam 1 RUN: db479905-9313-4850-b6d8-9cae79914da9